fUSD/lending_fUSD_20240118
["ID","MTS","AMOUNT","RATE_DAILY","PERIOD"]
[312020400,1705552249140,-500.0,0.00022191,2]
[312020401,1705552249150,-3467.4,0.00022191,2]
[312020402,1705552249159,-539.9,0.00022191,2]
[312020403,1705552249169,-500.0,0.00022191,2]
[312020404,1705552249178,-500.0,0.00022191,2]
[312020405,1705552249188,-500.0,0.00022191,2]
[312020406,1705552249198,-1106.64,0.00022191,2]
[312020407,1705552249207,-500.0,0.00022191,2]
[312020408,1705552249217,-789.1,0.00022191,2]
[312020409,1705552249227,-500.0,0.00022191,2]
[312020410,1705552249238,-500.0,0.00022191,2]
[312020411,1705552249247,-556.92,0.00022191,2]
[312020412,1705552249256,-1105.65,0.00022191,2]
[312020413,1705552249267,-1973.43,0.00022191,2]
[312020414,1705552249276,-500.0,0.00022191,2]
[312020415,1705552249286,-500.0,0.00022191,2]
[312020416,1705552249296,-500.0,0.00022191,2]
[312020417,1705552249306,-1617.66,0.00022191,2]
[312020418,1705552249317,-500.0,0.00022191,2]
[312020419,1705552249328,-500.0,0.00022191,2]
[312020420,1705552249337,-500.0,0.00022191,2]
[312020421,1705552249347,-957.81,0.00022191,2]
[312020422,1705552249356,-559.35,0.00022191,2]
[312020423,1705552249366,-500.0,0.00022191,2]
[312020424,1705552249375,-500.0,0.00022191,2]
[312020425,1705552249385,-500.0,0.00022191,2]
[312020426,1705552249395,-1450.51,0.00022191,2]
[312020427,1705552249405,-1003.93,0.00022191,2]
[312020428,1705552249415,-500.0,0.00022191,2]
[312020429,1705552249425,-591.16,0.00022191,2]
[312020430,1705552249435,-500.0,0.00022191,2]
[312020431,1705552249445,-500.0,0.00022191,2]
[312020432,1705552249454,-500.0,0.00022191,2]
[312020433,1705552249463,-689.47,0.00022191,2]
[312020434,1705552249473,-500.0,0.00022191,2]
[312020435,1705552249483,-500.0,0.00022191,2]
[312020436,1705552249493,-500.0,0.00022191,2]
[312020437,1705552249502,-500.0,0.00022191,2]
[312020438,1705552249512,-615.22,0.00022191,2]
[312020439,1705552249521,-746.89,0.00022191,2]
[312020440,1705552249530,-852.81,0.00022191,2]
[312020441,1705552249540,-500.0,0.00022191,2]
[312020442,1705552249549,-9298.93,0.00022191,2]
[312020443,1705552249559,-759.13,0.00022191,2]
[312020444,1705552249568,-500.0,0.00022191,2]
[312020445,1705552249577,-500.0,0.00022191,2]
[312020446,1705552249588,-500.0,0.00022191,2]
[312020447,1705552249600,-2235.19,0.00022191,2]
[312020448,1705552249610,-500.0,0.00022191,5]
[312020449,1705552249620,-500.0,0.00022191,2]
[312020450,1705552249632,-532.7,0.00022191,2]
[312020451,1705552249642,-1040.47,0.00022191,2]
[312020452,1705552249651,-500.0,0.00022191,2]
[312020453,1705552249662,-598.94,0.00022191,2]
[312020454,1705552249671,-500.0,0.00022191,2]
[312020455,1705552249680,-936.3,0.00022191,2]
[312020456,1705552249691,-500.0,0.00022191,2]
[312020457,1705552249701,-1531.02,0.00022191,2]
[312020458,1705552249710,-1339.38,0.00022191,2]
[312020459,1705552249719,-4573.41,0.00022191,2]
[312020460,1705552249729,-681.55,0.00022191,2]
[312020461,1705552249738,-775.2,0.00022191,2]
[312020462,1705552249747,-500.0,0.00022191,2]
[312020463,1705552249757,-787.16,0.00022191,2]
[312020464,1705552249767,-500.0,0.00022191,2]
[312020465,1705552249777,-509.27,0.00022191,2]
[312020466,1705552249788,-1447.15,0.00022191,2]
[312020467,1705552249799,-500.0,0.00022191,2]
[312020468,1705552249809,-2052.39,0.00022191,2]
[312020469,1705552249821,-500.0,0.00022191,2]
[312020470,1705552249832,-718.58,0.00022191,2]
[312020471,1705552249842,-500.0,0.00022191,2]
[312020472,1705552249852,-500.0,0.00022191,2]
[312020473,1705552249861,-500.0,0.00022191,2]
[312020474,1705552249870,-500.0,0.00022191,2]
[312020475,1705552249882,-527.25517411,0.00022191,2]
[312020476,1705552249892,-1068.23,0.00022191,2]
[312020477,1705552249901,-500.0,0.00022191,2]
[312020478,1705552249910,-1086.94,0.00022191,2]
[312020479,1705552249920,-500.0,0.00022191,2]
[312020480,1705552249930,-500.0,0.00022191,2]
[312020481,1705552249939,-500.0,0.00022191,2]
[312020482,1705552249948,-591.1,0.00022191,2]
[312020483,1705552249959,-500.0,0.00022191,2]
[312020484,1705552249969,-500.0,0.00022191,2]
[312020485,1705552249979,-500.0,0.00022191,2]
[312020486,1705552249990,-500.0,0.00022191,2]
[312020487,1705552249999,-500.0,0.00022191,2]
[312020488,1705552250009,-500.0,0.00022191,2]
[312020489,1705552250019,-516.3993906,0.00022191,2]
[312020490,1705552250029,-500.0,0.00022191,2]
[312020491,1705552250040,-1276.63,0.00022191,2]
[312020492,1705552250049,-540.25,0.00022191,2]
[312020493,1705552250059,-500.0,0.00022191,2]
[312020494,1705552250069,-500.0,0.00022191,2]
[312020495,1705552250079,-1113.08,0.00022191,2]
[312020496,1705552250090,-500.0,0.00022191,2]
[312020497,1705552250100,-150.0,0.00022199,2]
[312020498,1705552250110,-3263.0,0.000222,2]
[312020499,1705552250121,-34537.0,0.000222,2]
[312020500,1705552250131,-3000.0,0.000222,2]
[312020501,1705552250141,-3000.0,0.0002221,2]
[312020502,1705552250151,-3000.0,0.0002222,2]
[312020503,1705552250162,-329.78782876,0.00022228,2]
[312020504,1705552250172,-3000.0,0.0002223,2]
[312020505,1705552250182,-3000.0,0.0002224,2]
[312020506,1705552250192,-500.0,0.0002224,7]
[312020507,1705552250202,-500.0,0.0002224,7]
[312020508,1705552250212,-161.77,0.0002224,2]
[312020509,1705552250223,-3000.0,0.0002225,2]
[312020510,1705552250233,-3000.0,0.0002226,2]
[312020511,1705552250243,-162.67,0.00022263,2]
[312020512,1705552250253,-3000.0,0.0002227,2]
[312020513,1705552250263,-3000.0,0.0002228,2]
[312020514,1705552250273,-439.57132692,0.00022281,2]
[312020515,1705552250284,-500.0,0.00022283,2]
[312020516,1705552250294,-200.0,0.00022283,2]
[312020517,1705552250304,-991.29342352,0.00022288,2]
[312020518,1705552250314,-3000.0,0.0002229,2]
[312020519,1705552250324,-3000.0,0.000223,2]
[312020520,1705552250334,-2900.0,0.000223,8]
[312020521,1705552250344,-3000.0,0.0002231,2]
[312020522,1705552250357,-198.29067422,0.00022313,2]
[312020523,1705552250366,-3000.0,0.0002232,2]
[312020524,1705552250376,-5401.073887,0.0002233,2]
[312020525,1705552250386,-18251.97067826,0.00022364,2]
[312020526,1705552250395,-166.60203053,0.00022365,2]
[312020527,1705552250405,-329.78782876,0.00022365,2]
[312020528,1705552250415,-180.32,0.00022381,2]
[312020529,1705552250426,-3900.0,0.000224,8]
[312020530,1705552250436,-18251.97067823,0.00022413,2]
[312020531,1705552250446,-500.0,0.00022413,2]
[312020532,1705552250456,-500.0,0.00022413,2]
[312020533,1705552250466,-439.57132692,0.00022436,2]
[312020534,1705552250475,-647.00580118,0.00022459,2]
[312020535,1705552250485,-904.91,0.00022459,2]
[312020536,1705552250495,-500.0,0.00022459,7]
[312020537,1705552250504,-500.0,0.00022459,7]
[312020538,1705552250514,-2615.68810425,0.00022459,2]
[312020539,1705552250524,-1156.0,0.0002246,2]
[312020540,1705552250533,-18251.97067823,0.00022461,2]
[312020541,1705552250543,-150.0,0.00022464,2]
[312020542,1705552250552,-227.43,0.00022464,2]
[312020543,1705552250562,-500.0,0.00022464,2]
[312020544,1705552250571,-2429.2941901,0.00022464,2]
[312020545,1705552250581,-25567.6353577,0.00022464,2]
[312020546,1705552250590,-904.91,0.00022464,2]
[312020547,1705552250602,-68260.8969012,0.00022464,2]
[312020548,1705552250611,-207.0899709,0.00022464,2]
[312020549,1705552250620,-500.0,0.00022464,7]
[312020550,1705552250630,-500.0,0.00022464,7]
[312020551,1705552250640,-481.00196761,0.00022465,2]
[312020552,1705552250650,-500.0,0.00022465,2]
[312020553,1705552250659,-583.86582163,0.00022465,2]
[312020554,1705552250669,-593.82458628,0.00022465,2]
[312020555,1705552250679,-500.0,0.00022465,2]
[312020556,1705552250688,-176.16845694,0.00022465,2]
[312020557,1705552250698,-500.0,0.00022465,2]
[312020558,1705552250708,-500.0,0.00022465,2]
[312020559,1705552250717,-426.41094957,0.00022465,2]
[312020560,1705552250727,-274.57,0.00022465,2]
[312020561,1705552250737,-556.34,0.00022465,2]
[312020562,1705552250746,-500.0,0.00022465,2]
[312020563,1705552250755,-512.11,0.00022465,2]
[312020564,1705552250765,-903.86,0.00022465,2]
[312020565,1705552250775,-509.38646818,0.00022465,2]
[312020566,1705552250785,-500.0,0.00022465,2]
[312020567,1705552250795,-623.29350559,0.00022465,2]
[312020568,1705552250804,-671.68,0.00022465,2]
[312020569,1705552250814,-500.0,0.00022465,2]
[312020570,1705552250825,-500.0,0.00022465,2]
[312020571,1705552251039,-500.0,0.00022465,2]
[312020572,1705552251049,-500.0,0.00022465,2]
[312020573,1705552251059,-278.24186768,0.00022465,2]
[312020574,1705552251069,-492.14960176,0.00022465,2]
[312020575,1705552251078,-500.0,0.00022465,2]
[312020576,1705552251088,-500.0,0.00022465,2]
[312020577,1705552251099,-500.0,0.00022465,2]
[312020578,1705552251109,-500.0,0.00022465,2]
[312020579,1705552251118,-500.0,0.00022465,2]
[312020580,1705552251128,-500.0,0.00022465,2]
[312020581,1705552251138,-624.36516469,0.00022465,2]
[312020582,1705552251147,-500.0,0.00022465,2]
[312020583,1705552251157,-500.0,0.00022465,2]
[312020584,1705552251167,-500.0,0.00022465,2]
[312020585,1705552251176,-500.0,0.00022465,2]
[312020586,1705552251185,-500.0,0.00022465,2]
[312020587,1705552251196,-500.0,0.00022465,2]
[312020588,1705552251205,-500.0,0.00022465,2]
[312020589,1705552251215,-500.0,0.00022465,2]
[312020590,1705552251224,-500.0,0.00022465,2]
[312020591,1705552251234,-500.0,0.00022465,2]
[312020592,1705552251243,-436.03296855,0.00022465,2]
[312020593,1705552251252,-500.0,0.00022465,2]
[312020594,1705552251262,-500.0,0.00022465,2]
[312020595,1705552251271,-500.0,0.00022465,2]
[312020596,1705552251281,-500.0,0.00022465,2]
[312020597,1705552251291,-500.0,0.00022465,2]
[312020598,1705552251300,-500.0,0.00022465,2]
[312020599,1705552251310,-500.0,0.00022465,2]
[312020600,1705552251320,-500.0,0.00022465,2]
[312020601,1705552251330,-500.0,0.00022465,2]
[312020602,1705552251339,-500.0,0.00022465,2]
[312020603,1705552251349,-500.0,0.00022465,2]
[312020604,1705552251358,-500.0,0.00022465,2]
[312020605,1705552251368,-500.0,0.00022465,2]
[312020606,1705552251377,-500.0,0.00022465,2]
[312020607,1705552251387,-252.93943054,0.00022465,2]
[312020608,1705552251397,-500.0,0.00022465,2]
[312020609,1705552251406,-500.0,0.00022465,2]
[312020610,1705552251416,-500.0,0.00022465,2]
[312020611,1705552251426,-518.74365033,0.00022465,2]
[312020612,1705552251435,-500.0,0.00022465,2]
[312020613,1705552251444,-500.0,0.00022465,2]
[312020614,1705552251453,-500.0,0.00022465,2]
[312020615,1705552251463,-473.73284403,0.00022465,2]
[312020616,1705552251472,-500.0,0.00022465,2]
[312020617,1705552251481,-500.0,0.00022465,2]
[312020618,1705552251490,-556.73309812,0.00022465,2]
[312020619,1705552251500,-500.0,0.00022465,2]
[312020620,1705552251509,-500.0,0.00022465,2]
[312020621,1705552251519,-500.0,0.00022465,2]
[312020622,1705552251528,-500.0,0.00022465,2]
[312020623,1705552251538,-162.77,0.00022465,2]
[312020624,1705552251547,-500.0,0.00022465,2]
[312020625,1705552251557,-500.0,0.00022465,2]
[312020626,1705552251567,-500.0,0.00022465,2]
[312020627,1705552251576,-500.0,0.00022465,2]
[312020628,1705552251586,-208.21119346,0.00022465,2]
[312020629,1705552251596,-500.0,0.00022465,2]
[312020630,1705552251606,-500.0,0.00022465,2]
[312020631,1705552251616,-385.32504276,0.00022465,2]
[312020632,1705552251625,-151.27442549,0.00022465,2]
[312020633,1705552251635,-500.0,0.00022465,2]
[312020634,1705552251645,-500.0,0.00022465,2]
[312020635,1705552251655,-638.29223036,0.00022465,2]
[312020636,1705552251664,-513.95367083,0.00022465,2]
[312020637,1705552251673,-500.0,0.00022465,2]
[312020638,1705552251683,-432.68,0.00022465,2]
[312020639,1705552251692,-500.0,0.00022465,2]
[312020640,1705552251701,-500.0,0.00022465,2]
[312020641,1705552251712,-500.0,0.00022465,2]
[312020642,1705552251721,-500.0,0.00022465,2]
[312020643,1705552251731,-4258.76,0.00022465,2]
[312020644,1705552251741,-500.0,0.00022465,2]
[312020645,1705552251750,-500.0,0.00022465,2]
[312020646,1705552251759,-500.0,0.00022465,2]
[312020647,1705552251769,-500.0,0.00022465,2]
[312020648,1705552251779,-500.0,0.00022465,2]
[312020649,1705552251789,-500.0,0.00022465,2]
[312020650,1705552251799,-500.0,0.00022465,2]
[312020651,1705552251809,-150.0,0.00022465,2]
[312020652,1705552251818,-500.0,0.00022465,2]
[312020653,1705552251827,-713.14,0.00022465,2]
[312020654,1705552251837,-331.10609703,0.00022465,2]
[312020655,1705552251846,-500.0,0.00022465,2]
[312020656,1705552251857,-347.73379595,0.00022465,2]
[312020657,1705552251867,-500.0,0.00022465,2]
[312020658,1705552251876,-500.0,0.00022465,2]
[312020659,1705552251888,-313.89,0.00022465,2]
[312020660,1705552251898,-500.0,0.00022465,2]
[312020661,1705552251908,-462.06952608,0.00022465,2]
[312020662,1705552251917,-500.0,0.00022465,2]
[312020663,1705552251927,-500.0,0.00022465,2]
[312020664,1705552251936,-500.0,0.00022465,2]
[312020665,1705552251946,-500.0,0.00022465,2]
[312020666,1705552251955,-500.0,0.00022465,2]
[312020667,1705552251966,-500.0,0.00022465,2]
[312020668,1705552251977,-500.0,0.00022465,2]
[312020669,1705552251986,-500.0,0.00022465,2]
[312020670,1705552251995,-500.0,0.00022465,2]
[312020671,1705552252005,-500.0,0.00022465,2]
[312020672,1705552252014,-567.9453003,0.00022465,2]
[312020673,1705552252028,-164.08,0.00022465,2]
[312020674,1705552252038,-500.0,0.00022465,2]
[312020675,1705552252048,-500.0,0.00022465,2]
[312020676,1705552252058,-500.0,0.00022465,2]
[312020677,1705552252068,-741.13,0.00022465,2]
[312020678,1705552252078,-219.16786857,0.00022465,2]
[312020679,1705552252088,-449.02435891,0.00022465,2]
[312020680,1705552252099,-442.81,0.00022465,2]
[312020681,1705552252110,-500.0,0.00022465,2]
[312020682,1705552252119,-500.0,0.00022465,2]
[312020683,1705552252130,-500.0,0.00022465,2]
[312020684,1705552252140,-627.66,0.00022465,2]
[312020685,1705552252150,-500.0,0.00022465,2]
[312020686,1705552252159,-485.17526871,0.00022465,2]
[312020687,1705552252169,-500.0,0.00022465,2]
[312020688,1705552252180,-752.77,0.00022465,2]
[312020689,1705552252190,-500.0,0.00022465,2]
[312020690,1705552252200,-581.77,0.00022465,2]
[312020691,1705552252210,-1112.02,0.00022465,2]
[312020692,1705552252220,-1458.57,0.00022465,2]
[312020693,1705552252230,-401.24362009,0.00022465,2]
[312020694,1705552252240,-500.0,0.00022465,2]
[312020695,1705552252250,-500.0,0.00022465,2]
[312020696,1705552252260,-500.0,0.00022465,2]
[312020697,1705552252270,-500.0,0.00022465,2]
[312020698,1705552252280,-500.0,0.00022465,2]
[312020699,1705552252291,-500.0,0.00022465,2]
[312020700,1705552252301,-500.0,0.00022465,2]
[312020701,1705552252311,-500.0,0.00022465,2]
[312020702,1705552252322,-601.87,0.00022465,2]
[312020703,1705552252332,-500.0,0.00022465,2]
[312020704,1705552252342,-177.99715373,0.00022465,2]
[312020705,1705552252353,-500.0,0.00022465,2]
[312020706,1705552252363,-575.48,0.00022465,2]
[312020707,1705552252372,-3462.72,0.00022465,2]
[312020708,1705552252382,-1862.82,0.00022465,2]
[312020709,1705552252392,-1124.69,0.00022465,5]
[312020710,1705552252402,-712.61,0.00022465,2]
[312020711,1705552252411,-500.0,0.00022465,2]
[312020712,1705552252421,-2555.14,0.00022465,2]
[312020713,1705552252430,-500.0,0.00022465,2]
[312020714,1705552252439,-758.47,0.00022465,2]
[312020715,1705552252449,-422.55814966,0.00022465,2]
[312020716,1705552252459,-500.0,0.00022465,2]
[312020717,1705552252469,-500.0,0.00022465,2]
[312020718,1705552252479,-530.51,0.00022465,2]
[312020719,1705552252489,-500.0,0.00022465,2]
[312020720,1705552252498,-883.0,0.00022465,2]
[312020721,1705552252509,-551.93,0.00022465,2]
[312020722,1705552252518,-1689.08,0.00022465,2]
[312020723,1705552252528,-1208.91,0.00022465,2]
[312020724,1705552252537,-500.0,0.00022465,2]
[312020725,1705552252547,-500.0,0.00022465,2]
[312020726,1705552252557,-4816.7,0.00022465,2]
[312020727,1705552252566,-215.76348356,0.00022465,2]
[312020728,1705552252575,-12340.84,0.00022465,2]
[312020729,1705552252585,-500.0,0.00022465,2]
[312020730,1705552252594,-500.0,0.00022465,2]
[312020731,1705552252604,-2260.39,0.00022465,2]
[312020732,1705552252614,-500.0,0.00022465,2]
[312020733,1705552252623,-659.01,0.00022465,2]
[312020734,1705552252632,-589.23639137,0.00022465,2]
[312020735,1705552252642,-4372.22,0.00022465,2]
[312020736,1705552252651,-1674.5,0.00022465,2]
[312020737,1705552252660,-795.25,0.00022465,2]
[312020738,1705552252670,-976.07,0.00022465,2]
[312020739,1705552252683,-2142.64,0.00022465,2]
[312020740,1705552252693,-515.68,0.00022465,2]
[312020741,1705552252702,-500.0,0.00022465,2]
[312020742,1705552252712,-500.0,0.00022465,2]
[312020743,1705552252722,-179.62495424,0.00022465,2]
[312020744,1705552252732,-500.0,0.00022465,2]
[312020745,1705552252742,-1397.51,0.00022465,2]
[312020746,1705552252751,-1582.61,0.00022465,2]
[312020747,1705552252761,-639.39,0.00022465,2]
[312020748,1705552252770,-500.0,0.00022465,2]
[312020749,1705552252780,-500.0,0.00022465,2]
[312020750,1705552252790,-1078.61,0.00022465,2]
[312020751,1705552252799,-500.0,0.00022465,2]
[312020752,1705552252809,-889.36,0.00022465,2]
[312020753,1705552252819,-2351.56,0.00022465,2]
[312020754,1705552252828,-1118.0,0.00022465,2]
[312020755,1705552252838,-620.87,0.00022465,2]
[312020756,1705552252848,-663.27,0.00022465,2]
[312020757,1705552252857,-2569.01,0.00022465,2]
[312020758,1705552252867,-716.72,0.00022465,2]
[312020759,1705552252879,-500.0,0.00022465,2]
[312020760,1705552252890,-531.02550611,0.00022465,2]
[312020761,1705552252899,-500.0,0.00022465,2]
[312020762,1705552252909,-3748.89,0.00022465,2]
[312020763,1705552252919,-729.94,0.00022465,2]
[312020764,1705552252929,-500.0,0.00022465,2]
[312020765,1705552252939,-1640.59,0.00022465,2]
[312020766,1705552252950,-500.0,0.00022465,2]
[312020767,1705552252959,-500.0,0.00022465,2]
[312020768,1705552252969,-3467.4,0.00022465,2]
[312020769,1705552252979,-539.9,0.00022465,2]
[312020770,1705552252989,-500.0,0.00022465,2]
[312020771,1705552252999,-500.0,0.00022465,2]
[312020772,1705552253009,-500.0,0.00022465,2]
[312020773,1705552253021,-1106.64,0.00022465,2]
[312020774,1705552253030,-500.0,0.00022465,2]
[312020775,1705552253040,-789.1,0.00022465,2]
[312020776,1705552253050,-500.0,0.00022465,2]
[312020777,1705552253060,-500.0,0.00022465,2]
[312020778,1705552253070,-556.92,0.00022465,2]
[312020779,1705552253080,-1105.65,0.00022465,2]
[312020780,1705552253090,-1973.43,0.00022465,2]
[312020781,1705552253099,-500.0,0.00022465,2]
[312020782,1705552253110,-321.16730461,0.00022465,2]
[312020783,1705552253119,-500.0,0.00022465,2]
[312020784,1705552253129,-1617.66,0.00022465,2]
[312020785,1705552253139,-500.0,0.00022465,2]
[312020786,1705552253148,-500.0,0.00022465,2]
[312020787,1705552253158,-500.0,0.00022465,2]
[312020788,1705552253167,-957.81,0.00022465,2]
[312020789,1705552253177,-559.35,0.00022465,2]
[312020790,1705552253187,-638.21921375,0.00022465,2]
[312020791,1705552253196,-500.0,0.00022465,2]
[312020792,1705552253206,-1450.51,0.00022465,2]
[312020793,1705552253216,-335.57374084,0.00022465,2]
[312020794,1705552253226,-591.16,0.00022465,2]
[312020795,1705552253236,-1003.93,0.00022465,2]
[312020796,1705552253246,-500.0,0.00022465,2]
[312020797,1705552253256,-500.0,0.00022465,2]
[312020798,1705552253265,-500.0,0.00022465,2]
[312020799,1705552253281,-689.47,0.00022465,2]
[312020800,1705552253295,-500.0,0.00022465,2]
[312020801,1705552253308,-500.0,0.00022465,2]
[312020802,1705552253322,-500.0,0.00022465,2]
[312020803,1705552253335,-615.22,0.00022465,2]
[312020804,1705552253349,-746.89,0.00022465,2]
[312020805,1705552253361,-852.81,0.00022465,2]
[312020806,1705552253373,-500.0,0.00022465,2]
[312020807,1705552253386,-9298.93,0.00022465,2]
[312020808,1705552253398,-759.13,0.00022465,2]
[312020809,1705552253411,-500.0,0.00022465,2]
[312020810,1705552253424,-500.0,0.00022465,2]
[312020811,1705552253436,-500.0,0.00022465,2]
[312020812,1705552253449,-2235.19,0.00022465,2]
[312020813,1705552253459,-500.0,0.00022465,5]
[312020814,1705552253470,-500.0,0.00022465,2]
[312020815,1705552253483,-532.7,0.00022465,2]
[312020816,1705552253495,-1040.47,0.00022465,2]
[312020817,1705552253508,-500.0,0.00022465,2]
[312020818,1705552253519,-500.0,0.00022465,2]
[312020819,1705552253531,-598.94,0.00022465,2]
[312020820,1705552253544,-936.3,0.00022465,2]
[312020821,1705552253557,-500.0,0.00022465,2]
[312020822,1705552253568,-1531.02,0.00022465,2]
[312020823,1705552253578,-1339.38,0.00022465,2]
[312020824,1705552253591,-4573.41,0.00022465,2]
[312020825,1705552253605,-681.55,0.00022465,2]
[312020826,1705552253616,-775.2,0.00022465,2]
[312020827,1705552253630,-787.16,0.00022465,2]
[312020828,1705552253642,-509.27,0.00022465,2]
[312020829,1705552253654,-1447.15,0.00022465,2]
[312020830,1705552253665,-480.84763299,0.00022465,2]
[312020831,1705552253677,-2052.39,0.00022465,2]
[312020832,1705552253688,-526.82003819,0.00022465,2]
[312020833,1705552253701,-718.58,0.00022465,2]
[312020834,1705552253714,-500.0,0.00022465,2]
[312020835,1705552253726,-500.0,0.00022465,2]
[312020836,1705552253738,-500.0,0.00022465,2]
[312020837,1705552253752,-500.0,0.00022465,2]
[312020838,1705552253765,-1068.23,0.00022465,2]
[312020839,1705552253776,-500.0,0.00022465,2]
[312020840,1705552253787,-1086.94,0.00022465,2]
[312020841,1705552253798,-500.0,0.00022465,2]
[312020842,1705552253809,-500.0,0.00022465,2]
[312020843,1705552253821,-500.0,0.00022465,2]
[312020844,1705552253834,-591.1,0.00022465,2]
[312020845,1705552253846,-500.0,0.00022465,2]
[312020846,1705552253857,-500.0,0.00022465,2]
[312020847,1705552253871,-595.68700062,0.00022465,2]
[312020848,1705552253886,-500.0,0.00022465,2]
[312020849,1705552253897,-500.0,0.00022465,2]
[312020850,1705552253910,-500.0,0.00022465,2]
[312020851,1705552253921,-363.67818736,0.00022465,2]
[312020852,1705552253934,-1276.63,0.00022465,2]
[312020853,1705552253944,-540.25,0.00022465,2]
[312020854,1705552253956,-500.0,0.00022465,2]
[312020855,1705552253968,-1113.08,0.00022465,2]
[312020856,1705552253979,-162.67,0.00022479,2]
[312020857,1705552253991,-238.736,0.00022488,2]
[312020858,1705552254003,-1362.98,0.00022488,2]
[312020859,1705552254017,-1050.197,0.00022488,2]
[312020860,1705552254030,-840.0,0.00022488,2]
[312020861,1705552254043,-213.722,0.00022488,2]
[312020862,1705552254057,-208.661,0.00022488,2]
[312020863,1705552254069,-12240.31559135,0.000225,2]
[312020864,1705552254081,-344.0,0.000225,2]
[312020865,1705552254093,-4900.0,0.000225,8]
[312020866,1705552254104,-18251.97067823,0.0002251,2]
[312020867,1705552254116,-150.193,0.00022516,2]
[312020868,1705552254128,-150.0,0.00022516,2]
[312020869,1705552254140,-150.194,0.00022516,2]
[312020870,1705552254152,-150.111,0.00022516,2]
[312020871,1705552254165,-150.249,0.00022516,2]
[312020872,1705552254178,-150.0,0.00022516,2]
[312020873,1705552254191,-150.0,0.00022551,2]
[312020874,1705552254203,-18251.97067823,0.00022559,2]
[312020875,1705552254215,-225.84536867,0.00022569,2]
[312020876,1705552254227,-154.01,0.00022578,2]
[312020877,1705552254239,-439.57132692,0.00022591,2]
[312020878,1705552254251,-706.21,0.00022593,2]
[312020879,1705552254262,-900.0,0.000226,8]
[312020880,1705552254274,-180.0,0.00022603,2]
[312020881,1705552254285,-18251.97067823,0.00022608,2]
[312020882,1705552254296,-163.48,0.00022611,2]
[312020883,1705552254308,-1300.27,0.00022631,2]
[312020884,1705552254320,-179.76483827,0.00022639,2]
[312020885,1705552254331,-195.00618663,0.00022639,4]
[312020886,1705552254343,-228.28031148,0.00022639,2]
[312020887,1705552254356,-370.92670383,0.00022639,2]
[312020888,1705552254367,-346.56102771,0.00022639,2]
[312020889,1705552254380,-1501.0670071,0.00022639,2]
[312020890,1705552254393,-186.39555416,0.00022639,2]
[312020891,1705552254405,-156.82,0.00022646,2]
[312020892,1705552254419,-18251.97067823,0.00022656,2]
[312020893,1705552254432,-162.67,0.00022695,2]
[312020894,1705552254445,-1104.0,0.000227,2]
[312020895,1705552254457,-900.0,0.000227,8]
[312020896,1705552254468,-904.91,0.00022705,2]
[312020897,1705552254479,-18251.97067823,0.00022705,2]
[312020898,1705552254490,-150.0,0.00022716,2]
[312020899,1705552254501,-300.0,0.00022738,2]